bitfinex/quotes_SOLUSD_20260306
["timestamp","ask_amount","ask_price","bid_price","bid_amount"]
[1772773332838,0.4986944,88.129,88.076,0.47089397]
[1772773333139,0.4986944,88.129,88.077,0.47089397]
[1772773333739,0.4986944,88.129,88.047,4.82477569]
[1772773333740,0.4986944,88.127,88.079,0.47089397]
[1772773334035,0.4986944,88.126,88.079,0.47089397]
[1772773334938,39.71496005,88.128,88.079,0.47089397]
[1772773334939,0.4986944,88.123,88.079,0.47089397]
[1772773336635,0.4986944,88.121,88.079,0.47089397]
[1772773338846,0.4986944,88.119,88.081,0.47089397]
[1772773341936,11.84711356,88.118,88.081,0.47089397]
[1772773342239,11.84711356,88.118,88.061,0.28432314]
[1772773342240,0.4986944,88.117,88.083,0.47089397]
[1772773342444,16.1,88.129,88.083,0.47089397]
[1772773342445,16.1,88.129,88.084,0.47089397]
[1772773342631,11.34545784,88.141,88.085,0.47089397]
[1772773342946,0.4986944,88.14,88.085,0.47089397]
[1772773343928,0.4986944,88.138,88.088,0.47089397]
[1772773345536,11.84466714,88.137,88.09,0.47089397]
[1772773347230,0.46878032,88.143,88.091,0.48286712]
[1772773347731,0.46878032,88.143,88.094,0.48286712]
[1772773349253,0.46878032,88.141,88.094,0.48286712]
[1772773350635,0.47319139,88.139,88.096,0.47119935]
[1772773354048,0.47319139,88.137,88.098,0.47119935]
[1772773354268,0.47319139,88.137,88.097,11.35112432]
[1772773354740,0.47319139,88.129,88.075,11.82515904]
[1772773355066,0.47319139,88.119,88.075,11.35395969]
[1772773355638,0.47319139,88.119,88.073,11.35409127]
[1772773355838,0.47319139,88.119,88.065,0.47119935]
[1772773356149,0.47319139,88.117,88.067,0.47119935]
[1772773356956,0.47319139,88.109,88.055,0.47119935]
[1772773358253,0.47319139,88.107,88.057,0.47119935]
[1772773359035,0.47319139,88.106,88.057,0.47119935]
[1772773359349,0.47319139,88.099,88.057,0.47119935]
[1772773360965,0.47319139,88.097,88.057,0.47119935]
[1772773363540,0.47319139,88.095,88.057,0.47119935]
[1772773365772,0.47319139,88.093,88.059,0.47119935]
[1772773369757,11.3517686,88.092,88.059,0.47119935]
[1772773369976,0.47319139,88.091,88.059,0.47119935]
[1772773371373,0.47319139,88.091,88.061,0.47119935]
[1772773374858,0.49041805,88.089,88.061,0.47119935]
[1772773375473,0.49041805,88.089,88.063,0.46719305]
[1772773378052,0.49041805,88.087,88.057,0.46719305]
[1772773379859,0.47225715,88.085,88.059,0.47050908]
[1772773380881,0.47225715,88.09,88.059,0.47050908]
[1772773381177,0.47225715,88.09,88.03,0.48432314]
[1772773381178,0.47225715,88.089,88.038,0.47050908]
[1772773383282,0.47225715,88.087,88.04,0.47050908]
[1772773385680,11.35254183,88.086,88.042,0.47050908]
[1772773385885,0.47225715,88.085,88.042,0.47050908]
[1772773392194,0.47225715,88.085,88.044,0.47050908]
[1772773393279,0.47225715,88.083,88.044,0.47050908]
[1772773395182,0.47225715,88.083,88.046,0.47050908]
[1772773395484,3.2,88.1,88.047,0.47050908]
[1772773395485,0.47225715,88.098,88.047,0.47050908]
[1772773395685,0.47225715,88.098,88.05,0.47050908]
[1772773398886,0.47225715,88.096,88.052,0.47050908]
[1772773401990,0.47225715,88.096,88.045,28.39457095]
[1772773402190,0.47225715,88.089,88.032,0.47050908]
[1772773402391,0.47225715,88.089,88.033,0.47050908]
[1772773404099,0.47225715,88.079,88.035,0.47050908]
[1772773404324,0.47225715,88.059,88.02,0.2]
[1772773404594,0.47225715,88.049,88.02,0.2]
[1772773404996,0.47225715,88.049,88.008,0.47050908]
[1772773405175,0.47225715,88.049,88.001,0.47050908]
[1772773405372,0.28432314,88.061,88.001,0.47050908]
[1772773405373,0.47225715,88.039,88.001,0.47050908]
[1772773406298,0.47225715,88.037,88.001,0.47050908]
[1772773406501,0.47225715,88.037,87.999,0.70622058]
[1772773406888,0.47225715,88.029,87.999,0.70622058]
[1772773407206,0.47225715,88.029,88.0,0.67050908]
[1772773407788,0.47225715,88.024,88.0,0.67050908]
[1772773408399,11.83292424,88.023,88.0,0.67050908]
[1772773408597,0.47225715,88.022,88.0,0.67050908]
[1772773408801,30.0,88.017,88.0,0.67050908]
[1772773409102,0.47225715,88.051,88.012,0.47050908]
[1772773409298,0.47225715,88.049,88.012,0.47050908]
[1772773409900,0.45287109,88.058,88.012,0.47050908]
[1772773410690,0.45287109,88.056,88.014,0.48989503]
[1772773411822,11.35653852,88.055,88.015,11.36169971]
[1772773411996,11.35653852,88.055,88.016,0.48989503]
[1772773413488,11.35595587,88.06,88.017,0.48989503]
[1772773413905,11.35595587,88.06,88.02,0.48989503]
[1772773414209,11.80882696,88.06,88.02,0.48989503]
[1772773414611,0.45287109,88.059,88.02,0.48989503]
[1772773417397,0.45287109,88.057,88.02,0.48989503]
[1772773419707,11.35640955,88.056,88.021,0.48989503]
[1772773420003,10.23185682,88.056,88.021,0.48989503]
[1772773420392,10.68472791,88.056,88.021,0.48989503]
[1772773420793,0.45287109,88.056,88.022,11.36079616]
[1772773420998,0.45287109,88.056,88.023,0.48989503]
[1772773421808,0.45287109,88.068,88.023,0.48989503]
[1772773422512,0.45287109,88.077,88.023,0.48989503]
[1772773423004,0.45287109,88.075,88.025,0.48989503]
[1772773425112,11.80695969,88.074,88.027,0.48989503]
[1772773425608,0.45287109,88.073,88.027,0.48989503]
[1772773426198,0.45287109,88.073,88.03,0.48989503]
[1772773426509,104.0,88.135,88.03,0.48989503]
[1772773426510,0.45287109,88.095,88.03,0.48989503]
[1772773426692,3.59949909,88.08,88.03,0.48989503]
[1772773426894,0.45287109,88.079,88.03,0.48989503]
[1772773427119,0.45287109,88.077,88.032,0.48989503]
[1772773427591,11.35357296,88.078,88.032,0.28432314]
[1772773427793,11.80644405,88.078,88.033,0.48989503]
[1772773427993,0.45287109,88.077,88.033,0.48989503]
[1772773429401,0.45287109,88.075,88.035,0.48989503]
[1772773429996,11.35383078,88.076,88.035,0.48989503]
[1772773430518,0.45287109,88.075,88.035,0.48989503]
[1772773434196,0.45287109,88.073,88.037,0.48989503]
[1772773436320,0.45287109,88.071,88.037,0.48989503]
[1772773438220,0.45287109,88.069,88.039,0.48989503]
[1772773440303,11.35486215,88.068,88.039,0.48989503]
[1772773440503,0.49377218,88.067,88.039,0.48989503]
[1772773440899,0.49377218,88.067,88.04,11.35847342]
[1772773441105,11.35486215,88.068,88.04,11.35847342]
[1772773441106,11.35486215,88.068,88.041,0.4950618]
[1772773441518,28.87733456,88.08,88.042,0.4950618]
[1772773441845,0.49377218,88.078,88.042,0.4950618]
[1772773442605,0.49377218,88.076,88.023,0.4950618]
[1772773442821,0.49377218,88.076,88.024,0.4950618]
[1772773443525,0.49377218,88.098,88.03,0.4950618]
[1772773443711,0.49377218,88.097,88.03,0.4950618]
[1772773444531,0.49377218,88.095,88.033,0.4950618]
[1772773446730,0.49377218,88.092,88.035,0.4950618]
[1772773449379,0.49377218,88.09,88.037,0.4950618]
[1772773452333,0.49377218,88.088,88.039,0.4950618]
[1772773456230,0.49377218,88.086,88.041,0.4950618]
[1772773458540,0.49377218,88.084,88.043,0.4950618]
[1772773458923,3.69377218,88.09,88.044,0.4950618]
[1772773459131,0.49377218,88.089,88.044,0.4950618]
[1772773460831,0.49377218,88.087,88.047,0.4950618]
[1772773463149,0.49377218,88.085,88.047,0.4950618]
[1772773463442,0.49377218,88.085,88.048,0.4950618]
[1772773465045,11.35254183,88.086,88.048,0.4950618]
[1772773465248,11.84579851,88.09,88.05,0.4950618]
[1772773465434,0.49377218,88.089,88.05,0.4950618]
[1772773466643,0.49377218,88.104,88.052,4.82477569]
[1772773466941,3.2,88.144,88.056,0.4950618]
[1772773466942,0.49377218,88.137,88.056,0.4950618]
[1772773467350,0.49377218,88.134,88.061,0.4950618]
[1772773467528,0.49377218,88.134,88.062,0.4950618]
[1772773467943,0.49377218,88.134,88.068,0.4950618]
[1772773468931,0.49377218,88.132,88.07,0.4950618]
[1772773470746,11.34577589,88.139,88.077,3.69383402]
[1772773471055,0.48982722,88.136,88.08,0.47257334]
[1772773473742,0.48982722,88.134,88.082,0.47257334]
[1772773474756,0.48982722,88.134,88.083,0.47257334]
[1772773476236,11.83631491,88.133,88.086,0.47257334]
[1772773476435,11.34572476,88.139,88.086,0.47257334]
[1772773476646,11.34572476,88.139,88.087,3.69383402]
[1772773476958,11.34572476,88.139,88.089,0.47257334]
[1772773477334,0.2,88.15,88.096,0.47257334]
[1772773477540,11.34442818,88.149,88.096,0.47257334]
[1772773478550,11.34442818,88.149,88.099,0.47257334]
[1772773478737,0.2,88.15,88.099,0.47257334]
[1772773479547,0.48982722,88.165,88.104,8.51860971]
[1772773479732,11.83227379,88.165,88.105,0.47257334]
[1772773479932,0.48982722,88.164,88.105,0.47257334]
[1772773480667,0.48982722,88.162,88.11,0.47257334]
[1772773481564,11.34262672,88.163,88.112,0.47257334]
[1772773481750,11.54184146,88.17,88.115,0.47257334]
[1772773481949,0.48982722,88.169,88.115,0.47257334]
[1772773482769,0.48982722,88.169,88.12,0.47257334]
[1772773483060,0.48982722,88.167,88.12,0.47257334]
[1772773483850,0.48982722,88.167,88.051,45.42802613]
[1772773483851,0.48982722,88.159,88.107,0.47257334]
[1772773484740,0.48982722,88.157,88.109,0.47257334]
[1772773486952,0.48982722,88.155,88.111,0.47257334]
[1772773489746,3.60016563,88.15,88.097,0.47257334]
[1772773490066,0.48982722,88.139,88.097,0.47257334]
[1772773490658,0.48982722,88.139,88.093,16.28416035]
[1772773491847,0.48982722,88.137,88.094,0.47257334]
[1772773494167,0.48982722,88.135,88.096,0.47257334]
[1772773497254,0.48982722,88.129,88.079,11.82590063]
[1772773497570,30.0,88.12,88.079,11.82590063]
[1772773497871,33.60016563,88.12,88.079,0.47257334]
[1772773498196,33.60016563,88.12,88.074,11.35404355]
[1772773499266,39.71901633,88.119,88.074,0.5]
[1772773499581,30.0,88.115,88.074,0.5]
[1772773502889,30.0,88.115,88.076,0.5]
[1772773503705,11.34880234,88.116,88.042,0.64216157]
[1772773503706,3.60016563,88.11,88.042,0.64216157]
[1772773503994,3.60016563,88.1,88.043,0.5]
[1772773504901,30.0,88.097,88.044,0.5]
[1772773505076,3.60016563,88.09,88.044,0.5]
[1772773505675,0.28432314,88.096,88.033,28.39838844]
[1772773505676,3.60016563,88.08,88.033,0.5]
[1772773505878,30.0,88.075,88.033,0.5]
[1772773506098,0.28432314,88.069,88.017,0.5]
[1772773506295,3.60016563,88.06,88.017,0.5]
[1772773506598,3.60016563,88.07,88.017,0.5]
[1772773506984,11.35640955,88.056,88.019,0.5]
[1772773507981,30.0,88.055,88.019,0.5]
[1772773508500,40.02137736,88.079,88.021,0.5]
[1772773509082,3.60016563,88.07,88.021,0.5]
[1772773509896,30.0,88.054,88.021,0.5]
[1772773511086,30.0,88.054,88.022,11.36079616]
[1772773511289,30.0,88.054,88.023,0.5]
[1772773511493,11.35540559,88.064,88.023,0.5]
[1772773511896,11.35331516,88.08,88.023,0.5]
[1772773512096,11.35331516,88.08,88.024,0.5]
[1772773513506,28.37963746,88.092,88.027,0.5]
[1772773514413,3.60016563,88.09,88.027,0.5]
[1772773514906,28.37963746,88.092,88.027,0.5]
[1772773515398,28.37963746,88.092,88.029,0.78432314]
[1772773515608,28.37963746,88.092,88.03,0.5]
[1772773516199,11.35086663,88.099,88.03,0.5]
[1772773516509,11.35086663,88.099,88.037,0.5]
[1772773516689,11.35086663,88.099,88.036,0.28432314]
[1772773516690,11.35086663,88.099,88.04,0.5]
[1772773517700,28.37611842,88.103,88.043,0.5]
[1772773518986,11.34970717,88.108,88.043,0.5]
[1772773519410,11.34970717,88.108,88.046,0.5]
[1772773519789,28.37273116,88.113,88.051,0.5]
[1772773521511,14.94628144,88.12,88.051,0.5]
[1772773521512,11.34816159,88.12,88.052,0.5]
[1772773521997,28.3696015,88.123,88.055,0.5]
[1772773522305,11.34764649,88.124,88.058,0.5]
[1772773523018,0.28432314,88.119,88.058,0.5]
[1772773524508,39.71946707,88.118,88.059,11.35602266]
[1772773524689,0.28432314,88.117,88.06,0.5]
[1772773526305,3.59811985,88.11,88.06,0.5]
[1772773526503,39.72397511,88.108,88.054,11.35654579]
[1772773526701,0.28432314,88.107,88.055,0.5]
[1772773528198,39.72397511,88.108,88.055,0.5]
[1772773528398,0.28432314,88.107,88.055,0.5]
[1772773530313,0.28432314,88.107,88.057,0.5]
[1772773530314,0.28432314,88.105,88.057,0.5]
[1772773533007,0.28432314,88.103,88.059,0.5]
[1772773533303,3.2,88.102,88.059,0.5]
[1772773535203,3.88244299,88.1,88.013,0.5]
[1772773535398,141.882612,88.101,88.012,51.06]
[1772773535399,0.28432314,88.089,88.016,0.5]
[1772773536525,0.28432314,88.087,88.021,0.5]
[1772773538916,3.59811985,88.08,88.023,0.5]
[1772773540435,0.28432314,88.085,88.023,0.5]
[1772773542311,0.28432314,88.083,88.025,0.5]
[1772773544332,0.28432314,88.083,88.027,0.5]
[1772773545421,3.2,88.082,88.027,0.5]
[1772773545834,3.2,88.082,88.028,0.5]
[1772773546518,11.35318627,88.081,88.03,0.5]
[1772773547027,3.2,88.082,88.03,0.5]
[1772773547232,11.35294119,88.083,88.03,0.5]
[1772773549820,0.2,88.101,88.036,0.4679541]
[1772773551423,0.2,88.13,88.051,0.28432314]
[1772773551626,0.2,88.13,88.058,0.4679541]
[1772773551934,0.2,88.128,88.06,0.4679541]
[1772773553834,0.2,88.126,88.063,0.4679541]
[1772773554832,0.2,88.125,88.063,0.4679541]
[1772773555839,39.71541071,88.127,88.05,3.83599559]
[1772773555840,0.2,88.123,88.066,0.4679541]
[1772773557937,28.36565376,88.135,88.069,0.4679541]
[1772773557938,0.2,88.121,88.069,0.4679541]
[1772773560338,0.2,88.119,88.071,0.45046841]
[1772773562455,0.2,88.117,88.073,0.45046841]
[1772773565343,11.34867674,88.116,88.075,0.45046841]
[1772773568540,0.2,88.119,88.077,0.45046841]
[1772773571063,0.2,88.117,88.057,0.45046841]
[1772773571233,0.2,88.109,88.058,0.45046841]
[1772773572844,0.2,88.107,88.06,0.45046841]
[1772773575341,0.2,88.105,88.061,11.35576475]
[1772773575541,0.2,88.105,88.061,11.80623316]
[1772773575953,0.2,88.105,88.062,0.45046841]
[1772773577553,11.35022246,88.104,88.064,0.45046841]
[1772773577759,0.2,88.102,88.054,0.45046841]
[1772773577937,0.2,88.101,88.054,0.45046841]
[1772773580660,0.2,88.099,88.056,0.45046841]
[1772773582366,0.2,88.099,88.051,0.45046841]
[1772773583137,0.2,88.097,88.051,0.45046841]
[1772773583355,0.2,88.097,88.053,0.45046841]
[1772773586959,0.2,88.095,88.055,0.45046841]
[1772773590366,0.2,88.093,88.057,0.46552273]
[1772773591167,3.2,88.102,88.057,0.46552273]
[1772773591168,11.35095804,88.099,88.057,0.46552273]
[1772773591462,11.35095804,88.099,88.058,0.46552273]
[1772773591668,3.2,88.102,88.057,0.46552273]
[1772773591870,11.35095804,88.099,88.057,0.46552273]
[1772773593570,11.35095804,88.099,88.059,0.46552273]
[1772773596449,0.2,88.103,88.061,0.46552273]
[1772773598668,28.3755675,88.104,88.041,3.69383402]
[1772773598669,11.54841916,88.118,88.063,0.46552273]
[1772773598876,0.2,88.117,88.063,0.46552273]
[1772773601793,0.2,88.115,88.065,0.46552273]
[1772773602073,0.2,88.115,88.066,0.46552273]
[1772773604071,0.2,88.113,88.069,0.46552273]
[1772773605473,11.3483138,88.119,88.071,0.46552273]
[1772773606778,28.3678738,88.128,88.071,0.46552273]
[1772773606993,0.2,88.123,88.073,0.46552273]
[1772773610792,3.2,88.134,88.068,3.97815716]
[1772773610793,0.2,88.121,88.076,0.46552273]
[1772773611078,0.2,88.132,88.076,0.46552273]
[1772773613081,0.2,88.13,88.079,0.46552273]
[1772773613765,11.34674518,88.131,88.079,0.46552273]
[1772773614364,0.2,88.13,88.079,0.46552273]
[1772773615079,0.2,88.128,88.081,0.46552273]
[1772773617170,0.2,88.126,88.083,0.46552273]
[1772773619195,3.59874045,88.12,88.055,0.46552273]
[1772773619371,0.2,88.118,88.055,0.46552273]
[1772773620069,0.2,88.109,88.055,0.46552273]
[1772773621193,0.2,88.097,88.055,11.82195439]
[1772773621398,11.35099548,88.098,88.056,0.46102134]
[1772773621686,11.35042879,88.103,88.056,0.46102134]
[1772773624992,0.2,88.112,88.058,0.46102134]
[1772773625695,0.2,88.109,88.058,0.46102134]
[1772773628095,0.2,88.107,88.06,0.46102134]
[1772773630676,0.2,88.105,88.062,0.46102134]
[1772773632502,0.2,88.103,88.064,0.46102134]
[1772773635402,28.37426794,88.108,88.066,0.46102134]
[1772773635403,0.2,88.101,88.066,0.46102134]
[1772773637504,0.2,88.101,88.041,0.46102134]
[1772773637505,0.48432314,88.101,88.041,0.46102134]
[1772773637684,0.2,88.069,88.018,0.46102134]
[1772773637883,0.2,88.059,88.01,0.2]
[1772773638108,0.2,88.058,88.01,0.66102134]
[1772773638490,0.2,88.058,88.011,11.36221608]
[1772773638788,0.2,88.056,88.012,0.46102134]
[1772773639796,0.2,88.056,88.014,0.46102134]
[1772773639797,0.2,88.054,88.014,0.46102134]
[1772773642286,3.59874045,88.07,88.01,0.2]
[1772773642287,11.35679647,88.053,88.016,0.46102134]
[1772773644498,0.2,88.057,88.018,0.46102134]
[1772773645088,0.2,88.057,88.012,0.46102134]
[1772773645283,0.2,88.057,88.013,11.36195789]
[1772773645503,0.2,88.057,88.014,0.46102134]
[1772773646008,3.2,88.065,88.014,0.46102134]
[1772773646009,11.35555329,88.063,88.014,0.46102134]
[1772773646713,0.2,88.066,88.016,0.46102134]
[1772773647312,0.2,88.066,88.017,0.46102134]
[1772773648027,0.2,88.078,88.02,0.46102134]
[1772773648320,11.55279522,88.085,88.02,0.46102134]
[1772773648510,11.55279522,88.085,88.03,0.46102134]
[1772773648688,11.55279522,88.085,88.033,0.46102134]
[1772773649911,11.55279522,88.085,88.035,0.74271022]
[1772773650097,11.55279522,88.085,88.036,0.45838708]
[1772773650904,0.2,88.084,88.036,0.45838708]
[1772773651814,11.35292848,88.083,88.039,0.45838708]
[1772773652033,0.2,88.084,88.039,0.45838708]
[1772773652209,11.35235657,88.088,88.039,0.45838708]
[1772773652523,0.2,88.087,88.039,0.45838708]
[1772773653404,11.55254183,88.086,88.041,0.45838708]
[1772773653617,0.2,88.085,88.041,0.45838708]
[1772773656403,0.2,88.083,88.043,0.45838708]
[1772773659404,11.35305737,88.082,88.045,0.45838708]
[1772773659603,0.2,88.081,88.045,0.45838708]
[1772773661908,0.2,88.079,88.047,0.45838708]
[1772773662502,0.2,88.079,88.04,0.45838708]
[1772773663725,0.2,88.077,88.04,0.45838708]
[1772773664831,0.2,88.076,88.028,0.45838708]
[1772773665008,0.2,88.069,88.021,0.45838708]
[1772773665210,0.2,88.059,88.01,0.2]
[1772773665403,0.2,88.058,88.017,11.36139592]
[1772773665710,0.2,88.058,88.02,0.45838708]
[1772773666319,0.2,88.056,88.02,0.45838708]
[1772773666616,0.2,88.056,88.022,0.45838708]
[1772773668018,0.2,88.054,88.017,11.3614375]
[1772773669435,0.2,88.054,88.018,4.65562718]
[1772773669931,0.2,88.054,88.019,0.45838708]
[1772773670228,0.2,88.052,88.019,0.45838708]
[1772773670430,0.2,88.052,88.02,11.3610543]
[1772773670614,0.2,88.052,88.021,0.45838708]
[1772773671933,0.2,88.052,88.018,4.1972401]
[1772773672631,0.2,88.05,88.018,4.1972401]
[1772773674631,0.2,88.05,88.013,0.45838708]
[1772773676833,0.2,88.048,88.013,0.45838708]
[1772773678424,0.2,88.048,87.992,28.41152758]
[1772773678425,3.60226908,88.02,87.983,0.45838708]
[1772773678818,0.45838708,88.009,87.97,0.2]
[1772773679124,0.25838708,87.999,87.96,0.1]
[1772773679522,0.25838708,87.989,87.912,51.1]
[1772773679722,0.25838708,87.989,87.925,28.43310996]
[1772773679926,0.25838708,87.989,87.945,11.37069836]
[1772773680733,0.25838708,87.989,87.951,0.45887065]
[1772773680934,0.25838708,87.987,87.951,0.45887065]
[1772773681333,0.25838708,87.987,87.944,0.45887065]
[1772773681824,0.25838708,87.987,87.924,28.43334479]
[1772773681825,0.25838708,87.979,87.936,0.45887065]
[1772773682138,0.25838708,87.979,87.94,0.55887065]
[1772773682332,0.25838708,87.979,87.941,0.45887065]
[1772773682547,30.0,87.987,87.941,0.45887065]
[1772773682849,30.0,87.987,87.94,39.89982304]
[1772773682850,30.0,87.987,87.942,39.7989584]
[1772773683150,11.36298755,88.006,87.944,0.45887065]
[1772773683739,0.15838708,88.005,87.944,0.45887065]
[1772773684520,0.15838708,88.013,87.947,0.45887065]
[1772773687137,0.15838708,88.009,87.952,0.45887065]
[1772773687342,0.15838708,87.999,87.952,0.45887065]
[1772773687547,0.15838708,87.989,87.952,0.45887065]
[1772773687727,0.15838708,88.009,87.945,0.45887065]
[1772773687934,0.15838708,88.008,87.945,0.45887065]
[1772773691042,0.15838708,88.006,87.947,0.45887065]
[1772773692645,0.15838708,88.003,87.947,0.45887065]
[1772773693231,0.15838708,88.002,87.949,0.45887065]
[1772773695562,0.15838708,88.002,87.951,0.45887065]
[1772773697533,0.15838708,88.002,87.953,0.45887065]
[1772773698475,39.77137143,88.003,87.953,0.45887065]
[1772773698476,11.36324898,88.003,87.953,0.45887065]
[1772773698753,11.52163606,88.003,87.953,0.45887065]
[1772773698959,0.15838708,88.002,87.953,0.45887065]
[1772773699955,0.15838708,88.002,87.955,0.45887065]
[1772773701943,0.15838708,88.002,87.957,0.45887065]
[1772773705168,0.15838708,88.002,87.959,0.45887065]
[1772773705334,0.15838708,88.01,87.959,0.45887065]
[1772773707053,0.15838708,88.01,87.94,0.38432314]
[1772773707054,0.15838708,88.009,87.961,0.45887065]
[1772773707239,0.15838708,88.008,87.961,0.45887065]
[1772773707434,0.15838708,88.005,87.961,0.45887065]
[1772773710267,0.15838708,88.003,87.963,0.47037367]
[1772773710437,0.15838708,88.002,87.963,0.47037367]
[1772773710637,3.2,88.003,87.963,0.47037367]
[1772773711256,3.35838708,88.003,87.963,0.47037367]
[1772773711566,3.2,88.003,87.963,0.47037367]
[1772773711775,0.15838708,88.017,87.963,0.47037367]
[1772773712095,0.15838708,88.023,87.964,0.47037367]
[1772773712245,0.15838708,88.021,87.966,0.47037367]
[1772773715980,0.15838708,88.021,87.968,0.47037367]
[1772773717580,0.15838708,88.021,87.969,39.78674305]
[1772773717791,0.15838708,88.021,87.97,0.47037367]
[1772773717976,0.15838708,88.009,87.965,11.83851139]
[1772773718852,0.15838708,88.009,87.966,0.47037367]
[1772773719056,0.15838708,88.008,87.967,11.36789932]
[1772773720182,0.15838708,88.008,87.968,0.47037367]
[1772773721186,0.15838708,88.008,87.97,0.47037367]
[1772773723059,0.15838708,88.008,87.942,0.47037367]
[1772773723060,0.15838708,87.989,87.942,0.47037367]
[1772773723276,0.15838708,87.989,87.944,0.47037367]
[1772773724763,0.15838708,87.988,87.94,0.1]
[1772773724956,0.15838708,87.979,87.941,0.47037367]
[1772773725163,0.15838708,87.978,87.941,0.47037367]
[1772773725579,0.15838708,87.977,87.94,0.1]
[1772773726387,0.15838708,87.977,87.94,0.57037367]
[1772773727464,0.15838708,87.977,87.942,0.47037367]
[1772773728595,11.3654445,87.986,87.942,0.47037367]
[1772773729392,11.3654445,87.986,87.944,0.47037367]
[1772773729600,0.15838708,87.985,87.944,0.47037367]
[1772773731393,0.15838708,87.985,87.946,0.47037367]
[1772773734079,0.15838708,87.969,87.93,0.1]
[1772773734388,0.15838708,87.968,87.93,0.1]
[1772773734872,0.15838708,87.959,87.93,0.1]
[1772773735369,0.15838708,87.958,87.93,0.1]
[1772773735981,0.15838708,87.957,87.93,0.1]
[1772773737277,0.15838708,87.956,87.93,0.1]
[1772773737683,0.15838708,87.956,87.931,0.47037367]
[1772773738370,0.15838708,87.954,87.93,0.1]
[1772773739882,0.15838708,87.954,87.916,0.47080646]
[1772773740274,39.79307599,87.955,87.916,0.47080646]
[1772773740475,0.05838708,87.979,87.918,0.47080646]
[1772773740785,0.05838708,87.968,87.919,0.47080646]
[1772773740975,0.05838708,87.959,87.919,0.47080646]
[1772773743589,0.05838708,87.958,87.919,0.47080646]
[1772773744191,39.79126638,87.959,87.915,4.13305925]
[1772773744192,39.79126638,87.959,87.921,0.47080646]
[1772773744689,11.36893325,87.959,87.921,0.47080646]
[1772773744890,28.41933233,87.969,87.921,0.47080646]
[1772773745073,11.36777009,87.968,87.921,0.47080646]
[1772773745469,0.05838708,87.974,87.923,0.47080646]
[1772773748885,0.05838708,87.969,87.923,0.47080646]
[1772773749998,0.05838708,87.969,87.924,0.47080646]
[1772773751480,0.05838708,87.969,87.925,11.37332954]
[1772773751688,0.34271022,87.974,87.926,0.47080646]
[1772773751989,0.05838708,87.973,87.926,0.47080646]
[1772773752695,0.28432314,87.972,87.926,0.47080646]
[1772773753403,3.25838708,87.973,87.926,0.47080646]
[1772773753699,0.28432314,87.972,87.926,0.47080646]
[1772773753881,11.36738243,87.971,87.928,0.47080646]
[1772773754080,11.36738243,87.971,87.929,0.47080646]
[1772773755799,0.05838708,87.985,87.931,0.47080646]
[1772773756585,28.47016324,87.992,87.931,0.47080646]
[1772773756897,28.47016324,87.992,87.933,0.47080646]
[1772773758016,0.05838708,87.991,87.933,0.47080646]
[1772773759707,0.05838708,87.991,87.934,39.80257919]
[1772773760011,0.05838708,87.991,87.935,0.47080646]
[1772773760594,0.05838708,87.989,87.935,0.47080646]
[1772773761515,11.36376549,87.999,87.936,0.47080646]
[1772773761695,3.60671845,88.02,87.94,39.79986353]
[1772773761696,11.36118338,88.019,87.94,39.79986353]
[1772773761895,11.36118338,88.019,87.942,0.47080646]
[1772773761896,0.05838708,88.018,87.942,0.47080646]
[1772773762100,0.05838708,88.017,87.942,0.47080646]
[1772773764100,0.28432314,88.016,87.944,0.47080646]
[1772773764303,0.05838708,88.015,87.945,0.47080646]
[1772773766018,0.05838708,88.015,87.948,0.47080646]
[1772773766213,0.05838708,88.015,87.954,0.47080646]
[1772773767209,11.36040897,88.025,87.953,0.14216157]
[1772773767210,11.36040897,88.025,87.96,0.47080646]
[1772773767519,11.36040897,88.025,87.967,0.47080646]
[1772773768200,0.05838708,88.033,87.972,0.47080646]
[1772773768410,0.05838708,88.033,87.973,0.47080646]
[1772773770706,0.05838708,88.033,87.976,0.47136725]
[1772773773122,0.05838708,88.033,87.862,164.4]
[1772773773123,0.05838708,88.018,87.959,0.47136725]
[1772773774105,0.05838708,88.016,87.961,0.47136725]
[1772773775911,0.05838708,88.009,87.961,0.47136725]
[1772773776108,0.05838708,87.998,87.961,0.47136725]
[1772773776509,0.05838708,87.998,87.962,0.47136725]
[1772773777416,11.36376549,87.999,87.963,0.47136725]
[1772773779334,28.46374592,88.012,87.963,0.47136725]
[1772773779335,0.05838708,88.004,87.963,0.47136725]
[1772773779665,0.05838708,88.004,87.965,0.47136725]
[1772773781431,11.36247429,88.009,87.967,0.47136725]
[1772773784033,3.2,88.033,87.94,45.48528553]
[1772773784034,39.75826971,88.032,87.973,0.47136725]